[Event "Early-Titled-Tuesday-Blitz-October-17-2023"]
[Site "Chess.com"]
[Date "2023.10.17"]
[Round "3"]
[White "Shivananda1964"]
[Black "SanchezKelvin"]
[Result "0-1"]
[WhiteElo "2399"]
[BlackElo "2573"]
[TimeControl "180+1"]
[EndTime "8:29:35 PDT"]
[Termination "SanchezKelvin won on time"]

1. Nf3 {[%clk 0:02:56.5]} 1... Nf6 {[%clk 0:02:59]} 2. g3 {[%clk 0:02:56]} 2...
b6 {[%clk 0:02:59]} 3. Bg2 {[%clk 0:02:56.4]} 3... Bb7 {[%clk 0:02:59]} 4. O-O
{[%clk 0:02:56.8]} 4... c5 {[%clk 0:02:59]} 5. b3 {[%clk 0:02:53.9]} 5... g6
{[%clk 0:02:57.7]} 6. Bb2 {[%clk 0:02:54.5]} 6... Bg7 {[%clk 0:02:58]} 7. d3
{[%clk 0:02:51.9]} 7... O-O {[%clk 0:02:57.6]} 8. Nbd2 {[%clk 0:02:52]} 8... d5
{[%clk 0:02:55]} 9. Re1 {[%clk 0:02:51.4]} 9... d4 {[%clk 0:02:54.1]} 10. e3
{[%clk 0:02:47.2]} 10... dxe3 {[%clk 0:02:53.5]} 11. fxe3 {[%clk 0:02:37]} 11...
Nc6 {[%clk 0:02:52.7]} 12. Qe2 {[%clk 0:02:29.4]} 12... Qc7 {[%clk 0:02:47]} 13.
Nc4 {[%clk 0:02:27.8]} 13... Rfe8 {[%clk 0:02:41.9]} 14. a4 {[%clk 0:02:23.4]}
14... e5 {[%clk 0:02:39.1]} 15. Nfxe5 {[%clk 0:01:53.5]} 15... Nxe5 {[%clk
0:02:21.9]} 16. Bxe5 {[%clk 0:01:50.7]} 16... Rxe5 {[%clk 0:02:03.1]} 17. Bxb7
{[%clk 0:01:46.7]} 17... Qxb7 {[%clk 0:01:48.8]} 18. Nxe5 {[%clk 0:01:46.6]}
18... Nd5 {[%clk 0:01:48.6]} 19. d4 {[%clk 0:01:39.2]} 19... Re8 {[%clk
0:01:42.9]} 20. Qf3 {[%clk 0:01:23.3]} 20... f6 {[%clk 0:01:25.9]} 21. Nc4
{[%clk 0:01:21.3]} 21... Qd7 {[%clk 0:01:22]} 22. e4 {[%clk 0:01:17.8]} 22...
Nb4 {[%clk 0:01:18.7]} 23. Qf2 {[%clk 0:00:46.1]} 23... cxd4 {[%clk 0:01:06.6]}
24. Rad1 {[%clk 0:00:41.9]} 24... Nc6 {[%clk 0:01:04.1]} 25. Nb2 {[%clk
0:00:35.5]} 25... Bh6 {[%clk 0:00:43.7]} 26. c3 {[%clk 0:00:31.5]} 26... Qe6
{[%clk 0:00:38.2]} 27. cxd4 {[%clk 0:00:29.6]} 27... Qxb3 {[%clk 0:00:37.8]} 28.
Qxf6 {[%clk 0:00:23]} 28... Be3+ {[%clk 0:00:21.8]} 29. Kh1 {[%clk 0:00:13.9]}
29... Re6 {[%clk 0:00:07.5]} 30. Qf3 {[%clk 0:00:09.6]} 30... Qxb2 {[%clk
0:00:07.7]} 31. Qxe3 {[%clk 0:00:08.6]} 31... Nb4 {[%clk 0:00:07.7]} 32. d5
{[%clk 0:00:07.9]} 32... Rf6 {[%clk 0:00:07.5]} 33. e5 {[%clk 0:00:07.3]} 33...
Rf2 {[%clk 0:00:07.2]} 34. Kg1 {[%clk 0:00:02]} 34... Rg2+ {[%clk 0:00:06.8]}
35. Kf1 {[%clk 0:00:01.7]} 35... Rxh2 {[%clk 0:00:07.1]} 36. Qf3 {[%clk
0:00:01.4]} 36... Nc2 {[%clk 0:00:05.1]} 37. Re2 {[%clk 0:00:01.2]} 37... Rxe2
{[%clk 0:00:04.3]} 38. Qxe2 {[%clk 0:00:01.2]} 38... Qb3 {[%clk 0:00:04.8]} 0-1

[Event "Early-Titled-Tuesday-Blitz-October-17-2023"]
[Site "Chess.com"]
[Date "2023.10.17"]
[Round "3"]
[White "dianamirza"]
[Black "secretsuperstar7"]
[Result "0-1"]
[WhiteElo "2036"]
[BlackElo "2451"]
[TimeControl "180+1"]
[EndTime "8:29:35 PDT"]
[Termination "secretsuperstar7 won by checkmate"]

1. e4 {[%clk 0:03:00.9]} 1... c5 {[%clk 0:02:55.5]} 2. Nf3 {[%clk 0:02:55.4]}
2... Nc6 {[%clk 0:02:54.5]} 3. d4 {[%clk 0:02:55.3]} 3... cxd4 {[%clk
0:02:54.2]} 4. Nxd4 {[%clk 0:02:56.2]} 4... Nf6 {[%clk 0:02:48.8]} 5. Nc3 {[%clk
0:02:55.7]} 5... d6 {[%clk 0:02:46.8]} 6. f3 {[%clk 0:02:47.9]} 6... e6 {[%clk
0:02:40.3]} 7. Be3 {[%clk 0:02:47.9]} 7... a6 {[%clk 0:02:33]} 8. Be2 {[%clk
0:02:47.3]} 8... Be7 {[%clk 0:02:30.9]} 9. Qd2 {[%clk 0:02:43.7]} 9... O-O
{[%clk 0:02:29.9]} 10. g4 {[%clk 0:02:42.8]} 10... d5 {[%clk 0:02:19.4]} 11. g5
{[%clk 0:02:33.5]} 11... Ne8 {[%clk 0:02:18.5]} 12. h4 {[%clk 0:02:27]} 12...
Nc7 {[%clk 0:01:59.1]} 13. O-O-O {[%clk 0:02:23.8]} 13... Bd7 {[%clk 0:01:33.4]}
14. h5 {[%clk 0:01:59.7]} 14... Nxd4 {[%clk 0:01:27.2]} 15. Bxd4 {[%clk
0:01:58.6]} 15... Bxg5 {[%clk 0:01:11.1]} 16. f4 {[%clk 0:01:54.2]} 16... Bh6
{[%clk 0:01:11.1]} 17. Rdg1 {[%clk 0:01:45.8]} 17... Kh8 {[%clk 0:01:06.5]} 18.
Kb1 {[%clk 0:01:40.3]} 18... f6 {[%clk 0:01:04.3]} 19. Bd3 {[%clk 0:01:36.6]}
19... Re8 {[%clk 0:00:49.9]} 20. Qg2 {[%clk 0:01:36.1]} 20... Bc6 {[%clk
0:00:40.7]} 21. e5 {[%clk 0:01:26.9]} 21... f5 {[%clk 0:00:37.8]} 22. Rh3 {[%clk
0:01:15.8]} 22... b5 {[%clk 0:00:23.1]} 23. Ne2 {[%clk 0:01:14.6]} 23... b4
{[%clk 0:00:20]} 24. b3 {[%clk 0:01:14.4]} 24... Nb5 {[%clk 0:00:18.8]} 25. Bb2
{[%clk 0:01:14.2]} 25... Rc8 {[%clk 0:00:17.4]} 26. Rg3 {[%clk 0:01:04.5]} 26...
Rg8 {[%clk 0:00:16.1]} 27. Nd4 {[%clk 0:01:01]} 27... Nc3+ {[%clk 0:00:14.2]}
28. Ka1 {[%clk 0:00:58.4]} 28... Qd7 {[%clk 0:00:13.8]} 29. Ne2 {[%clk
0:00:46.7]} 29... d4 {[%clk 0:00:11.5]} 30. Qf2 {[%clk 0:00:44.3]} 30... Nxe2
{[%clk 0:00:11.5]} 31. Qxe2 {[%clk 0:00:44.5]} 31... a5 {[%clk 0:00:11]} 32. Qf2
{[%clk 0:00:43.8]} 32... a4 {[%clk 0:00:11]} 33. Qxd4 {[%clk 0:00:43.6]} 33...
Qb7 {[%clk 0:00:11]} 34. Bc4 {[%clk 0:00:38.5]} 34... Rcd8 {[%clk 0:00:10.8]}
35. Qc5 {[%clk 0:00:37.7]} 35... Bd5 {[%clk 0:00:10.9]} 36. Bxd5 {[%clk
0:00:24.7]} 36... Rxd5 {[%clk 0:00:11]} 37. Qa5 {[%clk 0:00:23.3]} 37... axb3
{[%clk 0:00:10.1]} 38. Qa4 {[%clk 0:00:19.3]} 38... bxc2 {[%clk 0:00:09.4]} 39.
Qxc2 {[%clk 0:00:19.3]} 39... Ra8 {[%clk 0:00:08.5]} 40. Bc1 {[%clk 0:00:16]}
40... Qa6 {[%clk 0:00:08.6]} 41. Qg2 {[%clk 0:00:14.9]} 41... b3 {[%clk
0:00:08.3]} 42. Rxb3 {[%clk 0:00:15.1]} 42... Qc4 {[%clk 0:00:06.5]} 43. Kb2
{[%clk 0:00:12.5]} 43... Rda5 {[%clk 0:00:06.4]} 44. Rc3 {[%clk 0:00:12]} 44...
Qxa2# {[%clk 0:00:05.2]} 0-1

[Event "Early-Titled-Tuesday-Blitz-October-17-2023"]
[Site "Chess.com"]
[Date "2023.10.17"]
[Round "3"]
[White "VincentKeymer"]
[Black "attack2mateU"]
[Result "1-0"]
[WhiteElo "3093"]
[BlackElo "2724"]
[TimeControl "180+1"]
[EndTime "8:29:43 PDT"]
[Termination "VincentKeymer won by resignation"]

1. Nf3 {[%clk 0:03:00.9]} 1... c5 {[%clk 0:02:59.4]} 2. c4 {[%clk 0:03:00.3]}
2... Nf6 {[%clk 0:02:59]} 3. b3 {[%clk 0:03:00.1]} 3... d5 {[%clk 0:02:59]} 4.
cxd5 {[%clk 0:03:00.3]} 4... Nxd5 {[%clk 0:02:59.8]} 5. Bb2 {[%clk 0:03:00.9]}
5... Nc6 {[%clk 0:02:59.4]} 6. Nc3 {[%clk 0:03:01.3]} 6... Nxc3 {[%clk 0:02:54]}
7. Bxc3 {[%clk 0:03:02.2]} 7... f6 {[%clk 0:02:54.1]} 8. e3 {[%clk 0:03:01.5]}
8... e5 {[%clk 0:02:54.6]} 9. Bc4 {[%clk 0:03:02.1]} 9... Bf5 {[%clk 0:02:54.4]}
10. Nh4 {[%clk 0:02:53.6]} 10... Bd3 {[%clk 0:02:52.1]} 11. Qf3 {[%clk
0:02:46.4]} 11... Qd7 {[%clk 0:02:44.9]} 12. Bd5 {[%clk 0:02:22.5]} 12... O-O-O
{[%clk 0:02:44.3]} 13. e4 {[%clk 0:02:22.8]} 13... Ba6 {[%clk 0:02:43.8]} 14.
Nf5 {[%clk 0:02:17]} 14... Kb8 {[%clk 0:02:36.7]} 15. h4 {[%clk 0:02:08.7]}
15... Nd4 {[%clk 0:01:37.6]} 16. Bxd4 {[%clk 0:02:08.8]} 16... cxd4 {[%clk
0:01:38.3]} 17. Bc4 {[%clk 0:02:07.4]} 17... Bxc4 {[%clk 0:01:35.5]} 18. bxc4
{[%clk 0:02:08.3]} 18... g6 {[%clk 0:01:33.9]} 19. Ng3 {[%clk 0:02:07.1]} 19...
d3 {[%clk 0:01:12.4]} 20. Qxf6 {[%clk 0:02:00.6]} 20... Qd4 {[%clk 0:01:12.4]}
21. O-O {[%clk 0:01:29.2]} 21... Bc5 {[%clk 0:01:12.4]} 22. Qg5 {[%clk
0:01:01.4]} 22... Rdf8 {[%clk 0:01:03.2]} 23. Kh2 {[%clk 0:00:56.6]} 23... Rf4
{[%clk 0:01:02.6]} 24. Rab1 {[%clk 0:00:44.2]} 24... h6 {[%clk 0:00:56.6]} 25.
Qxg6 {[%clk 0:00:43.9]} 25... Rxh4+ {[%clk 0:00:56.8]} 26. Kg1 {[%clk
0:00:43.4]} 26... Rf8 {[%clk 0:00:56.9]} 27. Qg7 {[%clk 0:00:27.4]} 27... b6
{[%clk 0:00:48]} 28. Nf5 {[%clk 0:00:27.6]} 28... Rxf5 {[%clk 0:00:17.1]} 29.
exf5 {[%clk 0:00:28.5]} 29... Rg4 {[%clk 0:00:17.2]} 30. Qxh6 {[%clk 0:00:19.9]}
30... Qe4 {[%clk 0:00:03.6]} 31. Qh3 {[%clk 0:00:19.8]} 31... Qxf5 {[%clk
0:00:03.4]} 32. g3 {[%clk 0:00:14.1]} 32... Qf3 {[%clk 0:00:03.2]} 33. Kh2
{[%clk 0:00:09.7]} 33... Bxf2 {[%clk 0:00:03.4]} 34. Rxf2 {[%clk 0:00:03.9]}
34... Qxf2+ {[%clk 0:00:03.7]} 35. Qg2 {[%clk 0:00:04.8]} 35... Qf5 {[%clk
0:00:02.7]} 36. Rf1 {[%clk 0:00:04.4]} 36... Qh5+ {[%clk 0:00:02.6]} 37. Kg1
{[%clk 0:00:05.1]} 37... Rxc4 {[%clk 0:00:02.5]} 38. Qd5 {[%clk 0:00:05]} 38...
Rc8 {[%clk 0:00:02.7]} 39. Qd6+ {[%clk 0:00:04.9]} 39... Kb7 {[%clk 0:00:02.4]}
40. Qd7+ {[%clk 0:00:05.5]} 40... Rc7 {[%clk 0:00:02.4]} 41. Qd5+ {[%clk
0:00:06.2]} 41... Ka6 {[%clk 0:00:02.9]} 42. Qxd3+ {[%clk 0:00:07]} 42... b5
{[%clk 0:00:03.1]} 43. Rf6+ {[%clk 0:00:06.6]} 43... Kb7 {[%clk 0:00:01.7]} 44.
Qd5+ {[%clk 0:00:06.9]} 44... Kc8 {[%clk 0:00:02.5]} 45. Rf8+ {[%clk 0:00:06.9]}
1-0

[Event "Early-Titled-Tuesday-Blitz-October-17-2023"]
[Site "Chess.com"]
[Date "2023.10.17"]
[Round "3"]
[White "jup1978"]
[Black "Byniolus"]
[Result "0-1"]
[WhiteElo "2551"]
[BlackElo "2804"]
[TimeControl "180+1"]
[EndTime "8:29:44 PDT"]
[Termination "Byniolus won by resignation"]

1. e4 {[%clk 0:03:00.9]} 1... d6 {[%clk 0:03:00.3]} 2. d4 {[%clk 0:03:00]} 2...
Nf6 {[%clk 0:03:01.2]} 3. Nc3 {[%clk 0:02:58.6]} 3... c6 {[%clk 0:03:01.8]} 4.
a4 {[%clk 0:02:55.9]} 4... a5 {[%clk 0:02:58.5]} 5. Nf3 {[%clk 0:02:55.8]} 5...
Bg4 {[%clk 0:02:57.8]} 6. h3 {[%clk 0:02:54.8]} 6... Bh5 {[%clk 0:02:57.9]} 7.
Be2 {[%clk 0:02:54.2]} 7... e6 {[%clk 0:02:58]} 8. e5 {[%clk 0:02:51.8]} 8...
Nd5 {[%clk 0:02:57.8]} 9. Nxd5 {[%clk 0:02:48.8]} 9... exd5 {[%clk 0:02:36.9]}
10. O-O {[%clk 0:02:37.9]} 10... Be7 {[%clk 0:02:34.2]} 11. exd6 {[%clk
0:02:36.4]} 11... Qxd6 {[%clk 0:02:35.1]} 12. Ne5 {[%clk 0:02:32.9]} 12... Bxe2
{[%clk 0:02:36]} 13. Qxe2 {[%clk 0:02:33.1]} 13... O-O {[%clk 0:02:35.2]} 14.
Bf4 {[%clk 0:02:33]} 14... Qd8 {[%clk 0:01:56]} 15. Rfe1 {[%clk 0:02:29.4]}
15... Bf6 {[%clk 0:01:49.7]} 16. Nf3 {[%clk 0:02:24.9]} 16... Nd7 {[%clk
0:01:45]} 17. c3 {[%clk 0:02:23.4]} 17... Re8 {[%clk 0:01:34.5]} 18. Qc2 {[%clk
0:02:22.6]} 18... Qb6 {[%clk 0:01:25.8]} 19. Rxe8+ {[%clk 0:02:20.2]} 19... Rxe8
{[%clk 0:01:26.7]} 20. Re1 {[%clk 0:02:19.4]} 20... Rxe1+ {[%clk 0:01:24.8]} 21.
Nxe1 {[%clk 0:02:20.3]} 21... Nf8 {[%clk 0:01:19.4]} 22. Nd3 {[%clk 0:02:17.7]}
22... Ne6 {[%clk 0:01:19.5]} 23. Be5 {[%clk 0:02:15.7]} 23... Be7 {[%clk
0:01:19.8]} 24. Nf4 {[%clk 0:02:10.9]} 24... Nf8 {[%clk 0:01:09.3]} 25. Nd3
{[%clk 0:02:09.9]} 25... f6 {[%clk 0:01:04.5]} 26. Bf4 {[%clk 0:02:08]} 26...
Kf7 {[%clk 0:01:01.5]} 27. Qd1 {[%clk 0:01:55.4]} 27... g6 {[%clk 0:01:00.1]}
28. h4 {[%clk 0:01:41]} 28... h5 {[%clk 0:00:56.8]} 29. g3 {[%clk 0:01:40.7]}
29... Ne6 {[%clk 0:00:49.8]} 30. Bc1 {[%clk 0:01:39.3]} 30... Qd8 {[%clk
0:00:44.8]} 31. g4 {[%clk 0:01:37.9]} 31... hxg4 {[%clk 0:00:39.8]} 32. Qxg4
{[%clk 0:01:38.8]} 32... Qh8 {[%clk 0:00:32.8]} 33. Qg3 {[%clk 0:01:24.3]} 33...
Qh5 {[%clk 0:00:27.7]} 34. f3 {[%clk 0:01:18.5]} 34... Qf5 {[%clk 0:00:25.4]}
35. f4 {[%clk 0:01:08.5]} 35... Bd6 {[%clk 0:00:22.3]} 36. b3 {[%clk 0:00:57.5]}
36... Qe4 {[%clk 0:00:19.6]} 37. Kf2 {[%clk 0:00:54.5]} 37... Ng7 {[%clk
0:00:16.2]} 38. Qf3 {[%clk 0:00:49.2]} 38... Nf5 {[%clk 0:00:14.4]} 39. Bd2
{[%clk 0:00:27.7]} 39... Nxh4 {[%clk 0:00:11.1]} 40. Qxe4 {[%clk 0:00:24]} 40...
dxe4 {[%clk 0:00:12]} 41. Ne1 {[%clk 0:00:24.3]} 41... Nf5 {[%clk 0:00:09.3]}
42. Nc2 {[%clk 0:00:24.7]} 42... Ke6 {[%clk 0:00:08.9]} 43. b4 {[%clk 0:00:25]}
43... axb4 {[%clk 0:00:07.6]} 44. cxb4 {[%clk 0:00:24.6]} 44... Kd5 {[%clk
0:00:07.6]} 45. Ke2 {[%clk 0:00:13.5]} 45... Nxd4+ {[%clk 0:00:06]} 46. Nxd4
{[%clk 0:00:13.6]} 46... Kxd4 {[%clk 0:00:06.9]} 47. Be3+ {[%clk 0:00:13]} 47...
Kc4 {[%clk 0:00:06.7]} 48. b5 {[%clk 0:00:11.9]} 48... cxb5 {[%clk 0:00:06.6]}
49. axb5 {[%clk 0:00:12.8]} 49... Kxb5 {[%clk 0:00:07.5]} 0-1

[Event "Early-Titled-Tuesday-Blitz-October-17-2023"]
[Site "Chess.com"]
[Date "2023.10.17"]
[Round "3"]
[White "LangesNasenhaar"]
[Black "BardArtem"]
[Result "0-1"]
[WhiteElo "2491"]
[BlackElo "2771"]
[TimeControl "180+1"]
[EndTime "8:29:45 PDT"]
[Termination "BardArtem won on time"]

1. d4 {[%clk 0:03:00.9]} 1... Nf6 {[%clk 0:02:58.6]} 2. Nc3 {[%clk 0:03:01.5]}
2... d5 {[%clk 0:02:58.4]} 3. Bf4 {[%clk 0:03:02]} 3... c5 {[%clk 0:02:58.8]} 4.
e4 {[%clk 0:03:02]} 4... Nxe4 {[%clk 0:02:58.1]} 5. Nxe4 {[%clk 0:03:01.5]} 5...
dxe4 {[%clk 0:02:59]} 6. dxc5 {[%clk 0:03:02.1]} 6... Qa5+ {[%clk 0:02:59.3]} 7.
c3 {[%clk 0:03:02.5]} 7... Qxc5 {[%clk 0:02:59.9]} 8. Qa4+ {[%clk 0:03:03.1]}
8... Nc6 {[%clk 0:02:59.7]} 9. Qxe4 {[%clk 0:03:03.6]} 9... g6 {[%clk
0:02:59.3]} 10. Nf3 {[%clk 0:03:03.1]} 10... Bg7 {[%clk 0:02:59.5]} 11. Rd1
{[%clk 0:02:58.4]} 11... Bf5 {[%clk 0:02:54.1]} 12. Qa4 {[%clk 0:02:58]} 12...
Qa5 {[%clk 0:02:53.8]} 13. Qxa5 {[%clk 0:02:56.9]} 13... Nxa5 {[%clk 0:02:54.7]}
14. Bb5+ {[%clk 0:02:56.5]} 14... Nc6 {[%clk 0:02:52.4]} 15. Ne5 {[%clk
0:02:48.1]} 15... Bxe5 {[%clk 0:02:19.9]} 16. Bxe5 {[%clk 0:02:45.6]} 16... f6
{[%clk 0:02:15.1]} 17. Bd4 {[%clk 0:02:35.5]} 17... Kf7 {[%clk 0:02:14.1]} 18.
Ke2 {[%clk 0:02:14.4]} 18... Rhd8 {[%clk 0:02:05.3]} 19. Be3 {[%clk 0:02:00.2]}
19... a6 {[%clk 0:01:45.3]} 20. Bc4+ {[%clk 0:01:57.9]} 20... Be6 {[%clk
0:01:44.3]} 21. Bxe6+ {[%clk 0:01:52.7]} 21... Kxe6 {[%clk 0:01:45.2]} 22. Rxd8
{[%clk 0:01:47.9]} 22... Rxd8 {[%clk 0:01:46.1]} 23. Rd1 {[%clk 0:01:46.8]}
23... Rxd1 {[%clk 0:01:46.3]} 24. Kxd1 {[%clk 0:01:47.7]} 24... Kd5 {[%clk
0:01:47.1]} 25. Ke2 {[%clk 0:01:33.2]} 25... b5 {[%clk 0:01:44]} 26. b3 {[%clk
0:01:28.9]} 26... e5 {[%clk 0:01:42.6]} 27. f3 {[%clk 0:01:21.5]} 27... f5
{[%clk 0:01:41.7]} 28. Bf2 {[%clk 0:01:09.5]} 28... e4 {[%clk 0:01:24.8]} 29.
fxe4+ {[%clk 0:01:03.7]} 29... Kxe4 {[%clk 0:01:25.7]} 30. Bc5 {[%clk
0:00:31.1]} 30... Ne5 {[%clk 0:01:17.9]} 31. h3 {[%clk 0:00:27.6]} 31... Nd3
{[%clk 0:01:17]} 32. Be3 {[%clk 0:00:25.7]} 32... f4 {[%clk 0:01:04.9]} 33. Bd2
{[%clk 0:00:26]} 33... g5 {[%clk 0:01:04]} 34. c4 {[%clk 0:00:21.1]} 34... bxc4
{[%clk 0:01:03.6]} 35. bxc4 {[%clk 0:00:22]} 35... Kd4 {[%clk 0:00:47.1]} 36. a3
{[%clk 0:00:08.1]} 36... Kxc4 {[%clk 0:00:46.4]} 37. Kf3 {[%clk 0:00:08.7]}
37... Ne5+ {[%clk 0:00:43.4]} 38. Ke4 {[%clk 0:00:07.9]} 38... Nf7 {[%clk
0:00:31.4]} 39. Kf5 {[%clk 0:00:08]} 39... Nd6+ {[%clk 0:00:31.9]} 40. Ke5
{[%clk 0:00:06]} 40... Kd3 {[%clk 0:00:20.7]} 41. Bb4 {[%clk 0:00:04.8]} 41...
Nc4+ {[%clk 0:00:18.2]} 42. Kf5 {[%clk 0:00:04.7]} 42... h6 {[%clk 0:00:10.7]}
43. Kg6 {[%clk 0:00:04.4]} 43... Ne3 {[%clk 0:00:11.3]} 44. Kxh6 {[%clk
0:00:01.5]} 44... Nxg2 {[%clk 0:00:11.8]} 45. Kxg5 {[%clk 0:00:01.8]} 45... f3
{[%clk 0:00:12.4]} 46. Bc5 {[%clk 0:00:02.3]} 46... Ne3 {[%clk 0:00:13]} 0-1

[Event "Early-Titled-Tuesday-Blitz-October-17-2023"]
[Site "Chess.com"]
[Date "2023.10.17"]
[Round "3"]
[White "pirulillo"]
[Black "FoxOnTheRun97"]
[Result "1-0"]
[WhiteElo "2341"]
[BlackElo "2536"]
[TimeControl "180+1"]
[EndTime "8:29:47 PDT"]
[Termination "pirulillo won on time"]

1. e4 {[%clk 0:03:00.9]} 1... c6 {[%clk 0:03:00.3]} 2. d4 {[%clk 0:02:59.5]}
2... d5 {[%clk 0:03:01.2]} 3. Nc3 {[%clk 0:03:00]} 3... dxe4 {[%clk 0:03:01.5]}
4. Nxe4 {[%clk 0:03:00.6]} 4... Bf5 {[%clk 0:03:02.3]} 5. Ng3 {[%clk 0:03:00.2]}
5... Bg6 {[%clk 0:03:02.7]} 6. h4 {[%clk 0:03:00.3]} 6... h6 {[%clk 0:03:03]} 7.
Nf3 {[%clk 0:03:00.8]} 7... Nd7 {[%clk 0:03:02.3]} 8. Bd3 {[%clk 0:03:01.2]}
8... Bxd3 {[%clk 0:03:02.2]} 9. Qxd3 {[%clk 0:03:02.1]} 9... e6 {[%clk
0:03:02.5]} 10. Bd2 {[%clk 0:03:00.4]} 10... Ngf6 {[%clk 0:03:02.1]} 11. O-O-O
{[%clk 0:02:55.3]} 11... Be7 {[%clk 0:02:57.7]} 12. Kb1 {[%clk 0:02:51.9]} 12...
a5 {[%clk 0:02:38.4]} 13. Ne4 {[%clk 0:02:46.7]} 13... Nxe4 {[%clk 0:02:37]} 14.
Qxe4 {[%clk 0:02:47.6]} 14... Nf6 {[%clk 0:02:37.2]} 15. Qe2 {[%clk 0:02:48]}
15... Qd5 {[%clk 0:02:35]} 16. Rhe1 {[%clk 0:02:44]} 16... O-O {[%clk
0:02:30.8]} 17. c4 {[%clk 0:02:39.1]} 17... Qf5+ {[%clk 0:02:29.5]} 18. Ka1
{[%clk 0:02:39.7]} 18... b5 {[%clk 0:02:17.1]} 19. Ne5 {[%clk 0:02:30.9]} 19...
bxc4 {[%clk 0:02:11.8]} 20. g4 {[%clk 0:02:28.9]} 20... Qc2 {[%clk 0:02:02.1]}
21. Rc1 {[%clk 0:02:24.8]} 21... Qa4 {[%clk 0:01:59]} 22. Rxc4 {[%clk
0:02:23.9]} 22... Qb5 {[%clk 0:01:59.4]} 23. g5 {[%clk 0:02:22.4]} 23... hxg5
{[%clk 0:01:55.7]} 24. hxg5 {[%clk 0:02:21.2]} 24... Nd5 {[%clk 0:01:35.4]} 25.
Rh1 {[%clk 0:02:17.3]} 25... g6 {[%clk 0:01:29.6]} 26. f4 {[%clk 0:02:14.5]}
26... Kg7 {[%clk 0:01:26.7]} 27. Rh6 {[%clk 0:01:51.1]} 27... Rh8 {[%clk
0:01:18.7]} 28. Qh2 {[%clk 0:01:48.5]} 28... Bd6 {[%clk 0:00:58.1]} 29. Rc1
{[%clk 0:01:34.7]} 29... Ne7 {[%clk 0:00:52.1]} 30. Rh1 {[%clk 0:01:25.5]} 30...
Bxe5 {[%clk 0:00:28.4]} 31. Rxh8 {[%clk 0:01:19.5]} 31... Qf1+ {[%clk
0:00:18.1]} 32. Rxf1 {[%clk 0:01:16.8]} 32... Rxh8 {[%clk 0:00:18.6]} 33. Qf2
{[%clk 0:01:12.3]} 33... Bd6 {[%clk 0:00:18.5]} 34. Bc3 {[%clk 0:00:56.2]} 34...
Nd5 {[%clk 0:00:18.1]} 35. Bd2 {[%clk 0:00:53.9]} 35... a4 {[%clk 0:00:18.2]}
36. a3 {[%clk 0:00:51.2]} 36... Rh3 {[%clk 0:00:16.5]} 37. Rc1 {[%clk
0:00:49.7]} 37... Ne7 {[%clk 0:00:12.4]} 38. Ka2 {[%clk 0:00:48.3]} 38... Rb3
{[%clk 0:00:10.2]} 39. d5 {[%clk 0:00:46.7]} 39... exd5 {[%clk 0:00:05.3]} 40.
Bc3+ {[%clk 0:00:44.8]} 40... Kf8 {[%clk 0:00:04.2]} 41. Rh1 {[%clk 0:00:43.3]}
41... Ke8 {[%clk 0:00:04.5]} 42. Qa7 {[%clk 0:00:40.6]} 42... Nf5 {[%clk
0:00:02.6]} 43. Rh8+ {[%clk 0:00:38.9]} 43... Bf8 {[%clk 0:00:03.1]} 44. Qa8+
{[%clk 0:00:37.6]} 44... Kd7 {[%clk 0:00:03.6]} 45. Rxf8 {[%clk 0:00:37]} 45...
d4 {[%clk 0:00:03.6]} 46. Qd8+ {[%clk 0:00:32]} 46... Ke6 {[%clk 0:00:03.4]} 47.
Re8+ {[%clk 0:00:32.4]} 47... Ne7 {[%clk 0:00:03.1]} 48. Rxe7+ {[%clk
0:00:32.7]} 48... Kf5 {[%clk 0:00:04]} 49. Rxf7+ {[%clk 0:00:32.5]} 49... Kg4
{[%clk 0:00:04.3]} 50. Qxd4 {[%clk 0:00:33.1]} 50... c5 {[%clk 0:00:04.4]} 51.
f5+ {[%clk 0:00:33.2]} 51... Kxg5 {[%clk 0:00:03.7]} 52. Qf6+ {[%clk 0:00:32.2]}
1-0

[Event "Early-Titled-Tuesday-Blitz-October-17-2023"]
[Site "Chess.com"]
[Date "2023.10.17"]
[Round "3"]
[White "Let_it_be_1"]
[Black "baki83"]
[Result "1/2-1/2"]
[WhiteElo "2635"]
[BlackElo "2814"]
[TimeControl "180+1"]
[EndTime "8:29:48 PDT"]
[Termination "Game drawn by repetition"]

1. e4 {[%clk 0:03:00.9]} 1... c5 {[%clk 0:02:59.6]} 2. Nf3 {[%clk 0:03:00.8]}
2... d6 {[%clk 0:02:59.6]} 3. d4 {[%clk 0:03:00.8]} 3... cxd4 {[%clk 0:02:59.4]}
4. Nxd4 {[%clk 0:03:01.5]} 4... Nf6 {[%clk 0:03:00.1]} 5. Nc3 {[%clk 0:03:01.6]}
5... a6 {[%clk 0:03:00.3]} 6. Be2 {[%clk 0:03:01.8]} 6... g6 {[%clk 0:02:59.1]}
7. Be3 {[%clk 0:03:00]} 7... Bg7 {[%clk 0:02:59.4]} 8. O-O {[%clk 0:02:58.8]}
8... O-O {[%clk 0:02:59.6]} 9. f4 {[%clk 0:02:58.7]} 9... b5 {[%clk 0:02:58.6]}
10. Bf3 {[%clk 0:02:53.8]} 10... e5 {[%clk 0:02:53.9]} 11. Nb3 {[%clk
0:02:44.3]} 11... Nc6 {[%clk 0:02:25.7]} 12. a4 {[%clk 0:02:27.4]} 12... b4
{[%clk 0:02:14.5]} 13. Nd5 {[%clk 0:02:27.2]} 13... exf4 {[%clk 0:02:14.9]} 14.
Bxf4 {[%clk 0:02:20.3]} 14... Nxd5 {[%clk 0:02:14.5]} 15. Qxd5 {[%clk
0:02:06.9]} 15... Be6 {[%clk 0:01:53.9]} 16. Qxc6 {[%clk 0:01:59.6]} 16... Bxb2
{[%clk 0:01:51.5]} 17. Rad1 {[%clk 0:01:42.8]} 17... Qf6 {[%clk 0:01:43.4]} 18.
Bxd6 {[%clk 0:01:13.8]} 18... Rac8 {[%clk 0:01:39.2]} 19. Qb6 {[%clk 0:01:06.3]}
19... Rfd8 {[%clk 0:01:23.5]} 20. e5 {[%clk 0:01:06.6]} 20... Qg5 {[%clk
0:01:18.9]} 21. Nc5 {[%clk 0:00:43]} 21... Rxd6 {[%clk 0:01:06.5]} 22. exd6
{[%clk 0:00:37.1]} 22... Bd4+ {[%clk 0:00:57.1]} 23. Rxd4 {[%clk 0:00:31.9]}
23... Qe3+ {[%clk 0:00:57.4]} 24. Kh1 {[%clk 0:00:32.1]} 24... Qxd4 {[%clk
0:00:58]} 25. d7 {[%clk 0:00:29.7]} 25... Bxd7 {[%clk 0:00:53.2]} 26. Nxd7
{[%clk 0:00:29]} 26... Qxd7 {[%clk 0:00:53.4]} 27. Qxb4 {[%clk 0:00:26.6]} 27...
Rxc2 {[%clk 0:00:50.8]} 28. Rd1 {[%clk 0:00:24.8]} 28... Qc7 {[%clk 0:00:48.9]}
29. Qd4 {[%clk 0:00:20.2]} 29... Rc1 {[%clk 0:00:40.4]} 30. h3 {[%clk
0:00:18.1]} 30... a5 {[%clk 0:00:38.3]} 31. Rxc1 {[%clk 0:00:15.9]} 31... Qxc1+
{[%clk 0:00:38.3]} 32. Kh2 {[%clk 0:00:16.3]} 32... Qc7+ {[%clk 0:00:39]} 33. g3
{[%clk 0:00:16.3]} 33... h5 {[%clk 0:00:39.4]} 34. h4 {[%clk 0:00:16.2]} 34...
Kf8 {[%clk 0:00:38.8]} 35. Bg2 {[%clk 0:00:15.1]} 35... Ke7 {[%clk 0:00:38.9]}
36. Qd5 {[%clk 0:00:15.3]} 36... Qc3 {[%clk 0:00:38]} 37. Qb7+ {[%clk
0:00:14.2]} 37... Kf8 {[%clk 0:00:33.2]} 38. Qb5 {[%clk 0:00:14.3]} 38... f5
{[%clk 0:00:26.2]} 39. Qd7 {[%clk 0:00:13.5]} 39... Qe5 {[%clk 0:00:19.4]} 40.
Qd5 {[%clk 0:00:11.9]} 40... Qe1 {[%clk 0:00:15.7]} 41. Qc5+ {[%clk 0:00:10.6]}
41... Kg7 {[%clk 0:00:15.1]} 42. Qd4+ {[%clk 0:00:10.3]} 42... Kh7 {[%clk
0:00:10.9]} 43. Qd7+ {[%clk 0:00:10.1]} 43... Kh6 {[%clk 0:00:10.7]} 44. Kh3
{[%clk 0:00:09.8]} 44... f4 {[%clk 0:00:08.8]} 45. gxf4 {[%clk 0:00:07.7]} 45...
Qe3+ {[%clk 0:00:08.9]} 46. Kh2 {[%clk 0:00:07.8]} 46... Qxf4+ {[%clk
0:00:09.6]} 47. Kg1 {[%clk 0:00:07.9]} 47... Qe3+ {[%clk 0:00:09.5]} 48. Kf1
{[%clk 0:00:08.2]} 48... Qf4+ {[%clk 0:00:09.9]} 49. Kg1 {[%clk 0:00:07.6]}
49... Qe3+ {[%clk 0:00:10]} 50. Kf1 {[%clk 0:00:08]} 50... Qf4+ {[%clk
0:00:10.2]} 51. Kg1 {[%clk 0:00:08.4]} 1/2-1/2